fUST/lending_fUST_20250219
["ID","MTS","AMOUNT","RATE_DAILY","PERIOD"]
[353539549,1739904655896,-500.0,0.00014027,2]
[353539550,1739904655905,-500.0,0.00014027,2]
[353539551,1739904655918,-500.0,0.00014027,2]
[353539552,1739904655931,-500.0,0.00014027,2]
[353539553,1739904655940,-616.3,0.00014027,2]
[353539554,1739904655951,-500.0,0.00014027,2]
[353539555,1739904655960,-500.0,0.00014027,2]
[353539556,1739904655970,-500.0,0.00014027,2]
[353539557,1739904655980,-500.0,0.00014027,2]
[353539558,1739904655989,-500.0,0.00014027,2]
[353539559,1739904655998,-500.0,0.00014027,2]
[353539560,1739904656008,-500.0,0.00014027,2]
[353539561,1739904656017,-500.0,0.00014027,2]
[353539562,1739904656027,-500.0,0.00014027,2]
[353539563,1739904656036,-5839.52,0.00014027,2]
[353539564,1739904656046,-500.0,0.00014027,2]
[353539565,1739904656055,-500.0,0.00014027,2]
[353539566,1739904656065,-500.0,0.00014027,2]
[353539567,1739904656074,-369.48109363,0.00014027,2]
[353539568,1739904656084,-500.0,0.00014027,2]
[353539569,1739904656095,-500.0,0.00014027,2]
[353539570,1739904656104,-500.0,0.00014027,2]
[353539571,1739904656113,-500.0,0.00014027,2]
[353539572,1739904656123,-500.0,0.00014027,2]
[353539573,1739904656134,-242.50196101,0.00014027,2]
[353539574,1739904656143,-500.0,0.00014027,2]
[353539575,1739904656153,-500.0,0.00014027,2]
[353539576,1739904656163,-735.62,0.00014027,2]
[353539577,1739904656173,-500.0,0.00014027,2]
[353539578,1739904656183,-500.0,0.00014027,2]
[353539579,1739904656192,-500.0,0.00014027,2]
[353539580,1739904656202,-500.0,0.00014027,2]
[353539581,1739904656211,-500.0,0.00014027,2]
[353539582,1739904656221,-531.62,0.00014027,2]
[353539583,1739904656230,-500.0,0.00014027,2]
[353539584,1739904656240,-1659.04,0.00014027,2]
[353539585,1739904656249,-500.0,0.00014027,2]
[353539586,1739904656259,-500.0,0.00014027,2]
[353539587,1739904656269,-500.0,0.00014027,2]
[353539588,1739904656278,-537.36,0.00014027,2]
[353539589,1739904656287,-500.0,0.00014027,2]
[353539590,1739904656297,-500.0,0.00014027,2]
[353539591,1739904656307,-500.0,0.00014027,2]
[353539592,1739904656316,-685.01,0.00014027,2]
[353539593,1739904656325,-500.0,0.00014027,2]
[353539594,1739904656335,-500.0,0.00014027,2]
[353539595,1739904656344,-500.0,0.00014027,2]
[353539596,1739904656353,-500.0,0.00014027,2]
[353539597,1739904656363,-500.0,0.00014027,2]
[353539598,1739904656372,-500.0,0.00014027,2]
[353539599,1739904656383,-504.15013052,0.00014027,2]
[353539600,1739904656392,-3166.95,0.00014027,2]
[353539601,1739904656402,-500.0,0.00014027,2]
[353539602,1739904656412,-500.0,0.00014027,2]
[353539603,1739904656422,-500.0,0.00014027,2]
[353539604,1739904656432,-500.0,0.00014027,2]
[353539605,1739904656441,-627.01,0.00014027,2]
[353539606,1739904656450,-506.64,0.00014027,2]
[353539607,1739904656460,-1452.95,0.00014027,2]
[353539608,1739904656469,-1398.72,0.00014027,2]
[353539609,1739904656479,-730.74,0.00014027,2]
[353539610,1739904656488,-500.0,0.00014027,2]
[353539611,1739904656497,-500.0,0.00014027,2]
[353539612,1739904656507,-500.0,0.00014027,2]
[353539613,1739904656516,-500.0,0.00014027,2]
[353539614,1739904656525,-748.94,0.00014027,2]
[353539615,1739904656535,-500.0,0.00014027,2]
[353539616,1739904656545,-324.43123313,0.00014027,2]
[353539617,1739904656554,-500.0,0.00014027,2]
[353539618,1739904656565,-10223.13,0.00014027,2]
[353539619,1739904656574,-500.0,0.00014027,2]
[353539620,1739904656583,-500.0,0.00014027,2]
[353539621,1739904656593,-1165.79,0.00014027,2]
[353539622,1739904656603,-500.0,0.00014027,2]
[353539623,1739904656612,-500.0,0.00014027,2]
[353539624,1739904656622,-1349.29,0.00014027,2]
[353539625,1739904656632,-500.0,0.00014027,2]
[353539626,1739904656643,-638.65,0.00014027,2]
[353539627,1739904656652,-772.53,0.00014027,2]
[353539628,1739904656663,-1535.25,0.00014027,2]
[353539629,1739904656672,-500.0,0.00014027,2]
[353539630,1739904656682,-500.0,0.00014027,2]
[353539631,1739904656691,-2947.02,0.00014027,2]
[353539632,1739904656701,-500.0,0.00014027,2]
[353539633,1739904656711,-500.0,0.00014027,2]
[353539634,1739904656721,-500.0,0.00014027,2]
[353539635,1739904656730,-608.49,0.00014027,2]
[353539636,1739904656740,-798.91,0.00014027,2]
[353539637,1739904656750,-500.0,0.00014027,2]
[353539638,1739904656760,-500.0,0.00014027,2]
[353539639,1739904656769,-500.0,0.00014027,2]
[353539640,1739904656779,-31783.51,0.00014027,2]
[353539641,1739904656792,-500.0,0.00014027,2]
[353539642,1739904656802,-392.32299539,0.00014027,2]
[353539643,1739904656811,-1717.72,0.00014027,2]
[353539644,1739904656822,-500.0,0.00014027,2]
[353539645,1739904656832,-648.71202474,0.00014027,2]
[353539646,1739904656842,-1006.6,0.00014027,2]
[353539647,1739904656851,-500.0,0.00014027,2]
[353539648,1739904656861,-784.86,0.00014027,2]
[353539649,1739904656872,-500.0,0.00014027,2]
[353539650,1739904656944,-500.0,0.00014027,2]
[353539651,1739904656954,-554.99,0.00014027,2]
[353539652,1739904656964,-500.0,0.00014109,2]
[353539653,1739904656973,-500.0,0.00014109,2]
[353539654,1739904656983,-500.0,0.00014109,2]
[353539655,1739904656992,-500.0,0.00014109,2]
[353539656,1739904657002,-500.0,0.00014109,2]
[353539657,1739904657011,-500.0,0.00014109,2]
[353539658,1739904657020,-500.0,0.00014109,2]
[353539659,1739904657030,-500.0,0.00014109,2]
[353539660,1739904657039,-500.0,0.00014109,2]
[353539661,1739904657049,-500.0,0.00014109,2]
[353539662,1739904657058,-500.0,0.00014109,2]
[353539663,1739904657068,-500.0,0.00014109,2]
[353539664,1739904657078,-500.0,0.00014109,2]
[353539665,1739904657088,-500.0,0.00014109,2]
[353539666,1739904657097,-424.27121801,0.00014109,2]
[353539667,1739904657107,-500.0,0.00014109,2]
[353539668,1739904657116,-686.89,0.00014109,2]
[353539669,1739904657126,-500.0,0.00014109,2]
[353539670,1739904657136,-655.2,0.00014109,2]
[353539671,1739904657146,-500.0,0.00014109,2]
[353539672,1739904657155,-500.0,0.00014109,2]
[353539673,1739904657165,-500.0,0.00014109,2]
[353539674,1739904657175,-500.0,0.00014109,2]
[353539675,1739904657185,-500.0,0.00014109,2]
[353539676,1739904657194,-500.0,0.00014109,2]
[353539677,1739904657204,-500.0,0.00014109,2]
[353539678,1739904657214,-500.0,0.00014109,2]
[353539679,1739904657223,-979.8,0.00014109,2]
[353539680,1739904657233,-583.66,0.00014109,2]
[353539681,1739904657243,-606.93,0.00014109,2]
[353539682,1739904657252,-500.0,0.00014109,2]
[353539683,1739904657262,-500.0,0.00014109,2]
[353539684,1739904657272,-615.01,0.00014109,2]
[353539685,1739904657282,-500.0,0.00014109,2]
[353539686,1739904657292,-500.0,0.00014109,2]
[353539687,1739904657302,-500.0,0.00014109,2]
[353539688,1739904657312,-500.0,0.00014109,2]
[353539689,1739904657322,-500.0,0.00014109,2]
[353539690,1739904657332,-500.0,0.00014109,2]
[353539691,1739904657342,-500.0,0.00014109,2]
[353539692,1739904657352,-616.3,0.00014109,2]
[353539693,1739904657363,-500.0,0.00014109,2]
[353539694,1739904657372,-507.03250244,0.00014109,2]
[353539695,1739904657383,-500.0,0.00014109,2]
[353539696,1739904657393,-500.0,0.00014109,2]
[353539697,1739904657402,-500.0,0.00014109,2]
[353539698,1739904657412,-5839.52,0.00014109,2]
[353539699,1739904657422,-500.0,0.00014109,2]
[353539700,1739904657431,-500.0,0.00014109,2]
[353539701,1739904657441,-500.0,0.00014109,2]
[353539702,1739904657450,-500.0,0.00014109,2]
[353539703,1739904657459,-500.0,0.00014109,2]
[353539704,1739904657469,-500.0,0.00014109,2]
[353539705,1739904657478,-500.0,0.00014109,2]
[353539706,1739904657488,-513.62697231,0.00014109,2]
[353539707,1739904657498,-500.0,0.00014109,2]
[353539708,1739904657507,-735.62,0.00014109,2]
[353539709,1739904657517,-500.0,0.00014109,2]
[353539710,1739904657526,-500.0,0.00014109,2]
[353539711,1739904657535,-500.0,0.00014109,2]
[353539712,1739904657545,-500.0,0.00014109,2]
[353539713,1739904657554,-500.0,0.00014109,2]
[353539714,1739904657563,-531.62,0.00014109,2]
[353539715,1739904657573,-500.0,0.00014109,2]
[353539716,1739904657582,-1659.04,0.00014109,2]
[353539717,1739904657591,-500.0,0.00014109,2]
[353539718,1739904657601,-500.0,0.00014109,2]
[353539719,1739904657610,-500.0,0.00014109,2]
[353539720,1739904657620,-537.36,0.00014109,2]
[353539721,1739904657630,-500.0,0.00014109,2]
[353539722,1739904657639,-500.0,0.00014109,2]
[353539723,1739904657648,-500.0,0.00014109,2]
[353539724,1739904657657,-685.01,0.00014109,2]
[353539725,1739904657667,-500.0,0.00014109,2]
[353539726,1739904657676,-500.0,0.00014109,2]
[353539727,1739904657685,-500.0,0.00014109,2]
[353539728,1739904657694,-500.0,0.00014109,2]
[353539729,1739904657703,-500.0,0.00014109,2]
[353539730,1739904657713,-500.0,0.00014109,2]
[353539731,1739904657722,-3166.95,0.00014109,2]
[353539732,1739904657731,-500.0,0.00014109,2]
[353539733,1739904657741,-500.0,0.00014109,2]
[353539734,1739904657750,-500.0,0.00014109,2]
[353539735,1739904657760,-500.0,0.00014109,2]
[353539736,1739904657770,-627.01,0.00014109,2]
[353539737,1739904657779,-1452.95,0.00014109,2]
[353539738,1739904657791,-1398.72,0.00014109,2]
[353539739,1739904657802,-730.74,0.00014109,2]
[353539740,1739904657811,-500.0,0.00014109,2]
[353539741,1739904657821,-500.0,0.00014109,2]
[353539742,1739904657832,-500.0,0.00014109,2]
[353539743,1739904657842,-500.0,0.00014109,2]
[353539744,1739904657851,-748.94,0.00014109,2]
[353539745,1739904657861,-500.0,0.00014109,2]
[353539746,1739904657871,-500.0,0.00014109,2]
[353539747,1739904657882,-10223.13,0.00014109,2]
[353539748,1739904657892,-500.0,0.00014109,2]
[353539749,1739904657902,-500.0,0.00014109,2]
[353539750,1739904657911,-1165.79,0.00014109,2]
[353539751,1739904657922,-500.0,0.00014109,2]
[353539752,1739904657931,-500.0,0.00014109,2]
[353539753,1739904657942,-1349.29,0.00014109,2]
[353539754,1739904657951,-500.0,0.00014109,2]
[353539755,1739904657962,-638.65,0.00014109,2]
[353539756,1739904657972,-772.53,0.00014109,2]
[353539757,1739904657981,-1535.25,0.00014109,2]
[353539758,1739904657991,-500.0,0.00014109,2]
[353539759,1739904658001,-500.0,0.00014109,2]
[353539760,1739904658010,-2947.02,0.00014109,2]
[353539761,1739904658020,-500.0,0.00014109,2]
[353539762,1739904658030,-509.94273618,0.00014109,2]
[353539763,1739904658039,-500.0,0.00014109,2]
[353539764,1739904658049,-608.49,0.00014109,2]
[353539765,1739904658058,-798.91,0.00014109,2]
[353539766,1739904658068,-500.0,0.00014109,2]
[353539767,1739904658077,-500.0,0.00014109,2]
[353539768,1739904658087,-500.0,0.00014109,2]
[353539769,1739904658096,-31783.51,0.00014109,2]
[353539770,1739904658106,-500.0,0.00014109,2]
[353539771,1739904658115,-1717.72,0.00014109,2]
[353539772,1739904658125,-1006.6,0.00014109,2]
[353539773,1739904658135,-784.86,0.00014109,2]
[353539774,1739904658145,-500.0,0.00014109,2]
[353539775,1739904658155,-500.0,0.00014109,2]
[353539776,1739904658164,-554.99,0.00014109,2]
[353539777,1739904658174,-358.3363738,0.00014114,2]
[353539778,1739904658241,-150.0,0.00014119,2]
[353539779,1739904658258,-150.0,0.00014119,2]
[353539780,1739904658268,-500.0,0.00014173,2]
[353539781,1739904658278,-500.0,0.00014173,2]
[353539782,1739904658288,-317.136,0.00014186,2]
[353539783,1739904658298,-500.0,0.00014191,2]
[353539784,1739904658307,-500.0,0.00014191,2]
[353539785,1739904658317,-500.0,0.00014191,2]
[353539786,1739904658327,-500.0,0.00014191,2]
[353539787,1739904658336,-500.0,0.00014191,2]
[353539788,1739904658345,-500.0,0.00014191,2]
[353539789,1739904658355,-500.0,0.00014191,2]
[353539790,1739904658365,-500.0,0.00014191,2]
[353539791,1739904658375,-500.0,0.00014191,2]
[353539792,1739904658385,-500.0,0.00014191,2]
[353539793,1739904658395,-500.0,0.00014191,2]
[353539794,1739904658405,-504.72747428,0.00014191,2]
[353539795,1739904658415,-500.0,0.00014191,2]
[353539796,1739904658425,-686.89,0.00014191,2]
[353539797,1739904658434,-500.0,0.00014191,2]
[353539798,1739904658444,-655.2,0.00014191,2]
[353539799,1739904658454,-500.0,0.00014191,2]
[353539800,1739904658464,-500.0,0.00014191,2]
[353539801,1739904658474,-500.0,0.00014191,2]
[353539802,1739904658484,-500.0,0.00014191,2]
[353539803,1739904658494,-500.0,0.00014191,2]
[353539804,1739904658504,-500.0,0.00014191,2]
[353539805,1739904658513,-500.0,0.00014191,2]
[353539806,1739904658523,-979.8,0.00014191,2]
[353539807,1739904658532,-583.66,0.00014191,2]
[353539808,1739904658542,-606.93,0.00014191,2]
[353539809,1739904658552,-500.0,0.00014191,2]
[353539810,1739904658561,-500.0,0.00014191,2]
[353539811,1739904658571,-500.0,0.00014191,2]
[353539812,1739904658581,-500.0,0.00014191,2]
[353539813,1739904658590,-500.0,0.00014191,2]
[353539814,1739904658600,-500.0,0.00014191,2]
[353539815,1739904658610,-616.3,0.00014191,2]
[353539816,1739904658619,-500.0,0.00014191,2]
[353539817,1739904658629,-500.0,0.00014191,2]
[353539818,1739904658639,-500.0,0.00014191,2]
[353539819,1739904658648,-500.0,0.00014191,2]
[353539820,1739904658658,-5839.52,0.00014191,2]
[353539821,1739904658669,-500.0,0.00014191,2]
[353539822,1739904658679,-500.0,0.00014191,2]
[353539823,1739904658689,-500.0,0.00014191,2]
[353539824,1739904658699,-500.0,0.00014191,2]
[353539825,1739904658708,-500.0,0.00014191,2]
[353539826,1739904658718,-500.0,0.00014191,2]
[353539827,1739904658727,-500.0,0.00014191,2]
[353539828,1739904658737,-500.0,0.00014191,2]
[353539829,1739904658746,-735.62,0.00014191,2]
[353539830,1739904658756,-500.0,0.00014191,2]
[353539831,1739904658765,-500.0,0.00014191,2]
[353539832,1739904658775,-500.0,0.00014191,2]
[353539833,1739904658787,-500.0,0.00014191,2]
[353539834,1739904658799,-500.0,0.00014191,2]
[353539835,1739904658811,-531.62,0.00014191,2]
[353539836,1739904658820,-500.0,0.00014191,2]
[353539837,1739904658830,-1659.04,0.00014191,2]
[353539838,1739904658839,-500.0,0.00014191,2]
[353539839,1739904658848,-500.0,0.00014191,2]
[353539840,1739904658858,-500.0,0.00014191,2]
[353539841,1739904658868,-537.36,0.00014191,2]
[353539842,1739904658879,-500.0,0.00014191,2]
[353539843,1739904658888,-500.0,0.00014191,2]
[353539844,1739904658898,-685.01,0.00014191,2]
[353539845,1739904658907,-500.0,0.00014191,2]
[353539846,1739904658917,-500.0,0.00014191,2]
[353539847,1739904658926,-500.0,0.00014191,2]
[353539848,1739904658936,-500.0,0.00014191,2]
[353539849,1739904658945,-500.0,0.00014191,2]
[353539850,1739904658955,-3166.95,0.00014191,2]
[353539851,1739904658964,-500.0,0.00014191,2]
[353539852,1739904658974,-624.91,0.00014191,2]
[353539853,1739904658984,-500.0,0.00014191,2]
[353539854,1739904658993,-500.0,0.00014191,2]
[353539855,1739904659003,-627.01,0.00014191,2]
[353539856,1739904659012,-1452.95,0.00014191,2]
[353539857,1739904659022,-1398.72,0.00014191,2]
[353539858,1739904659032,-730.74,0.00014191,2]
[353539859,1739904659042,-500.0,0.00014191,2]
[353539860,1739904659051,-500.0,0.00014191,2]
[353539861,1739904659060,-500.0,0.00014191,2]
[353539862,1739904659070,-500.0,0.00014191,2]
[353539863,1739904659079,-748.94,0.00014191,2]
[353539864,1739904659089,-500.0,0.00014191,2]
[353539865,1739904659098,-500.0,0.00014191,2]
[353539866,1739904659109,-10223.13,0.00014191,2]
[353539867,1739904659120,-500.0,0.00014191,2]
[353539868,1739904659130,-500.0,0.00014191,2]
[353539869,1739904659139,-1165.79,0.00014191,2]
[353539870,1739904659149,-500.0,0.00014191,2]
[353539871,1739904659159,-500.0,0.00014191,2]
[353539872,1739904659168,-1349.29,0.00014191,2]
[353539873,1739904659178,-500.0,0.00014191,2]
[353539874,1739904659188,-638.65,0.00014191,2]
[353539875,1739904659198,-772.53,0.00014191,2]
[353539876,1739904659208,-1535.25,0.00014191,2]
[353539877,1739904659218,-500.0,0.00014191,2]
[353539878,1739904659228,-500.0,0.00014191,2]
[353539879,1739904659237,-2947.02,0.00014191,2]
[353539880,1739904659247,-500.0,0.00014191,2]
[353539881,1739904659257,-152.45338622,0.00014191,2]
[353539882,1739904659267,-798.91,0.00014191,2]
[353539883,1739904659277,-608.49,0.00014191,2]
[353539884,1739904659287,-500.0,0.00014191,2]
[353539885,1739904659297,-500.0,0.00014191,2]
[353539886,1739904659308,-500.0,0.00014191,2]
[353539887,1739904659318,-31783.51,0.00014191,2]
[353539888,1739904659329,-500.0,0.00014191,2]
[353539889,1739904659339,-1717.72,0.00014191,2]
[353539890,1739904659348,-1006.6,0.00014191,2]
[353539891,1739904659359,-784.86,0.00014191,2]
[353539892,1739904659369,-500.0,0.00014191,2]
[353539893,1739904659379,-500.0,0.00014191,2]
[353539894,1739904659389,-554.99,0.00014191,2]
[353539895,1739904659399,-500.0,0.00014246,2]
[353539896,1739904659471,-500.0,0.00014273,2]
[353539897,1739904659482,-500.0,0.00014273,2]
[353539898,1739904659492,-449.78377754,0.00014273,2]
[353539899,1739904659502,-500.0,0.00014273,2]
[353539900,1739904659512,-500.0,0.00014273,2]
[353539901,1739904659522,-500.0,0.00014273,2]
[353539902,1739904659532,-500.0,0.00014273,2]
[353539903,1739904659543,-500.0,0.00014273,2]
[353539904,1739904659553,-500.0,0.00014273,2]
[353539905,1739904659563,-308.07,0.00014273,2]
[353539906,1739904659573,-500.0,0.00014273,2]
[353539907,1739904659584,-500.0,0.00014273,2]
[353539908,1739904659594,-686.89,0.00014273,2]
[353539909,1739904659604,-500.0,0.00014273,2]
[353539910,1739904659614,-655.2,0.00014273,2]
[353539911,1739904659623,-500.0,0.00014273,2]
[353539912,1739904659633,-500.0,0.00014273,2]
[353539913,1739904659643,-500.0,0.00014273,2]
[353539914,1739904659653,-500.0,0.00014273,2]
[353539915,1739904659663,-500.0,0.00014273,2]
[353539916,1739904659672,-500.0,0.00014273,2]
[353539917,1739904659682,-979.8,0.00014273,2]
[353539918,1739904659692,-583.66,0.00014273,2]
[353539919,1739904659701,-606.93,0.00014273,2]
[353539920,1739904659711,-500.0,0.00014273,2]
[353539921,1739904659721,-500.0,0.00014273,2]
[353539922,1739904659730,-500.0,0.00014273,2]
[353539923,1739904659740,-500.0,0.00014273,2]
[353539924,1739904659749,-500.0,0.00014273,2]
[353539925,1739904659759,-500.0,0.00014273,2]
[353539926,1739904659769,-616.3,0.00014273,2]
[353539927,1739904659778,-500.0,0.00014273,2]
[353539928,1739904659791,-500.0,0.00014273,2]
[353539929,1739904659802,-500.0,0.00014273,2]
[353539930,1739904659811,-500.0,0.00014273,2]
[353539931,1739904659821,-5839.52,0.00014273,2]
[353539932,1739904659831,-500.0,0.00014273,2]
[353539933,1739904659840,-500.0,0.00014273,2]
[353539934,1739904659850,-500.0,0.00014273,2]
[353539935,1739904659859,-500.0,0.00014273,2]
[353539936,1739904659869,-500.0,0.00014273,2]
[353539937,1739904659879,-500.0,0.00014273,2]
[353539938,1739904659889,-735.62,0.00014273,2]
[353539939,1739904659899,-500.0,0.00014273,2]
[353539940,1739904659908,-500.0,0.00014273,2]
[353539941,1739904659919,-500.0,0.00014273,2]
[353539942,1739904659935,-500.0,0.00014273,2]
[353539943,1739904659948,-500.0,0.00014273,2]
[353539944,1739904659958,-531.62,0.00014273,2]
[353539945,1739904659967,-500.0,0.00014273,2]
[353539946,1739904659977,-1659.04,0.00014273,2]
[353539947,1739904659987,-500.0,0.00014273,2]
[353539948,1739904659997,-500.0,0.00014273,2]
[353539949,1739904660007,-500.0,0.00014273,2]
[353539950,1739904660017,-537.36,0.00014273,2]
[353539951,1739904660028,-368.5386958,0.00014273,2]
[353539952,1739904660037,-685.01,0.00014273,2]
[353539953,1739904660047,-500.0,0.00014273,2]
[353539954,1739904660057,-500.0,0.00014273,2]
[353539955,1739904660066,-500.0,0.00014273,2]
[353539956,1739904660076,-500.0,0.00014273,2]
[353539957,1739904660086,-500.0,0.00014273,2]
[353539958,1739904660095,-3166.95,0.00014273,2]
[353539959,1739904660107,-569.61630298,0.00014273,2]
[353539960,1739904660117,-500.0,0.00014273,2]
[353539961,1739904660127,-500.0,0.00014273,2]
[353539962,1739904660137,-627.01,0.00014273,2]
[353539963,1739904660147,-1452.95,0.00014273,2]
[353539964,1739904660157,-1398.72,0.00014273,2]
[353539965,1739904660166,-730.74,0.00014273,2]
[353539966,1739904660176,-500.0,0.00014273,2]
[353539967,1739904660186,-500.0,0.00014273,2]
[353539968,1739904660195,-500.0,0.00014273,2]
[353539969,1739904660206,-500.0,0.00014273,2]
[353539970,1739904660215,-748.94,0.00014273,2]
[353539971,1739904660225,-500.0,0.00014273,2]
[353539972,1739904660235,-504.53299304,0.00014273,2]
[353539973,1739904660246,-10223.13,0.00014273,2]
[353539974,1739904660256,-500.0,0.00014273,2]
[353539975,1739904660265,-500.0,0.00014273,2]
[353539976,1739904660275,-1165.79,0.00014273,2]
[353539977,1739904660285,-500.0,0.00014273,2]
[353539978,1739904660295,-500.0,0.00014273,2]
[353539979,1739904660305,-1349.29,0.00014273,2]
[353539980,1739904660314,-500.0,0.00014273,2]
[353539981,1739904660325,-638.65,0.00014273,2]
[353539982,1739904660335,-772.53,0.00014273,2]
[353539983,1739904660344,-1535.25,0.00014273,2]
[353539984,1739904660354,-500.0,0.00014273,2]
[353539985,1739904660364,-500.0,0.00014273,2]
[353539986,1739904660373,-2947.02,0.00014273,2]
[353539987,1739904660385,-500.0,0.00014273,2]
[353539988,1739904660394,-798.91,0.00014273,2]
[353539989,1739904660404,-608.49,0.00014273,2]
[353539990,1739904660414,-500.0,0.00014273,2]
[353539991,1739904660423,-500.0,0.00014273,2]
[353539992,1739904660433,-500.0,0.00014273,2]
[353539993,1739904660442,-31783.51,0.00014273,2]
[353539994,1739904660452,-500.0,0.00014273,2]
[353539995,1739904660461,-1717.72,0.00014273,2]
[353539996,1739904660471,-1006.6,0.00014273,2]
[353539997,1739904660481,-784.86,0.00014273,2]
[353539998,1739904660491,-500.0,0.00014273,2]
[353539999,1739904660500,-500.0,0.00014273,2]
[353540000,1739904660510,-554.99,0.00014273,2]
[353540001,1739904660519,-108711.10172073,0.00014284,2]
[353540002,1739904660528,-622.0,0.000143,2]
[353540003,1739904660537,-476.91713802,0.00014303,2]
[353540004,1739904660547,-500.0,0.00014356,2]
[353540005,1739904660610,-500.0,0.00014356,2]
[353540006,1739904660620,-500.0,0.00014356,2]
[353540007,1739904660630,-500.0,0.00014356,2]
[353540008,1739904660640,-500.0,0.00014356,2]
[353540009,1739904660649,-500.0,0.00014356,2]
[353540010,1739904660659,-500.0,0.00014356,2]
[353540011,1739904660668,-500.0,0.00014356,2]
[353540012,1739904660678,-260.57469123,0.00014356,2]
[353540013,1739904660687,-686.89,0.00014356,2]
[353540014,1739904660697,-500.0,0.00014356,2]
[353540015,1739904660706,-154.162394,0.00014356,2]
[353540016,1739904660715,-655.2,0.00014356,2]
[353540017,1739904660725,-500.0,0.00014356,2]
[353540018,1739904660734,-500.0,0.00014356,2]
[353540019,1739904660743,-500.0,0.00014356,2]
[353540020,1739904660753,-497.39,0.00014356,2]
[353540021,1739904660763,-500.0,0.00014356,2]
[353540022,1739904660773,-500.0,0.00014356,2]
[353540023,1739904660785,-979.8,0.00014356,2]
[353540024,1739904660794,-583.66,0.00014356,2]
[353540025,1739904660804,-606.93,0.00014356,2]
[353540026,1739904660814,-500.0,0.00014356,2]
[353540027,1739904660823,-151.0,0.00014356,2]
[353540028,1739904660833,-500.0,0.00014356,2]
[353540029,1739904660843,-500.0,0.00014356,2]
[353540030,1739904660852,-500.0,0.00014356,2]
[353540031,1739904660863,-500.0,0.00014356,2]
[353540032,1739904660872,-500.0,0.00014356,2]
[353540033,1739904660883,-616.3,0.00014356,2]
[353540034,1739904660892,-500.0,0.00014356,2]
[353540035,1739904660903,-500.0,0.00014356,2]
[353540036,1739904660912,-500.0,0.00014356,2]
[353540037,1739904660921,-511.2091456,0.00014356,2]
[353540038,1739904660931,-5839.52,0.00014356,2]
[353540039,1739904660941,-500.0,0.00014356,2]
[353540040,1739904660951,-500.0,0.00014356,2]
[353540041,1739904660961,-500.0,0.00014356,2]
[353540042,1739904660970,-500.0,0.00014356,2]
[353540043,1739904660980,-500.0,0.00014356,2]
[353540044,1739904660989,-500.0,0.00014356,2]
[353540045,1739904660999,-735.62,0.00014356,2]
[353540046,1739904661008,-189.22,0.00014356,2]
[353540047,1739904661018,-500.0,0.00014356,2]
[353540048,1739904661027,-500.0,0.00014356,2]